[Event "Titled Tuesday Blitz March 15 Late 2022"]
[White "Rustemov, Alexander"]
[Black "Fiorito, Fabian"]
[WhiteFideId "4119002"]
[BlackFideId "100200"]
[WhiteElo "2745"]
[BlackElo "2395"]
[Result "1/2-1/2"]
[Round "04"]
[TimeControl "180+1"]
[Date "2022.03.16"]
[WhiteClock "0:00:02"]
[BlackClock "0:00:06"]

1. d4 {[%clk 0:02:28]}  Nf6 {[%clk 0:02:58]} 2. c4 {[%clk 0:02:28]}  b6 {[%clk 0:02:58]} 3. f3 {[%clk 0:02:28]}  Bb7 {[%clk 0:02:39]} 4. e4 {[%clk 0:02:27]}  e5 {[%clk 0:02:39]} 5. dxe5 {[%clk 0:02:21]}  Nh5 {[%clk 0:02:38]} 6. Ne2 {[%clk 0:02:16]}  Bc5 {[%clk 0:02:38]} 7. Nbc3 {[%clk 0:02:12]}  Nc6 {[%clk 0:02:32]} 8. f4 {[%clk 0:02:10]}  O-O {[%clk 0:02:28]} 9. g3 {[%clk 0:02:06]}  d6 {[%clk 0:02:20]} 10. exd6 {[%clk 0:02:06]}  cxd6 {[%clk 0:02:19]} 11. Bg2 {[%clk 0:02:05]}  Re8 {[%clk 0:02:17]} 12. a3 {[%clk 0:02:02]}  a5 {[%clk 0:02:15]} 13. Qd3 {[%clk 0:02:02]}  f5 {[%clk 0:02:11]} 14. Be3 {[%clk 0:01:54]}  Bxe3 {[%clk 0:02:09]} 15. Qxe3 {[%clk 0:01:53]}  Nf6 {[%clk 0:02:06]} 16. O-O {[%clk 0:01:48]}  fxe4 {[%clk 0:01:56]} 17. h3 {[%clk 0:01:44]}  Qe7 {[%clk 0:01:49]} 18. Rad1 {[%clk 0:01:43]}  Ba6 {[%clk 0:01:43]} 19. b3 {[%clk 0:01:41]}  Rab8 {[%clk 0:01:37]} 20. g4 {[%clk 0:01:37]}  Bb7 {[%clk 0:01:14]} 21. Ng3 {[%clk 0:01:32]}  Na7 {[%clk 0:01:02]} 22. Nf5 {[%clk 0:01:29]}  Qf8 {[%clk 0:00:59]} 23. Nxd6 {[%clk 0:01:28]}  Re7 {[%clk 0:00:58]} 24. g5 {[%clk 0:01:23]}  Nh5 {[%clk 0:00:55]} 25. f5 {[%clk 0:01:22]}  Nc6 {[%clk 0:00:54]} 26. f6 {[%clk 0:01:08]}  Re5 {[%clk 0:00:46]} 27. fxg7 {[%clk 0:01:01]}  Qxg7 {[%clk 0:00:37]} 28. Rf7 {[%clk 0:01:00]}  Qxg5 {[%clk 0:00:36]} 29. Qxg5+ {[%clk 0:00:59]}  Rxg5 {[%clk 0:00:37]} 30. Ncxe4 {[%clk 0:00:56]}  Rg7 {[%clk 0:00:28]} 31. Rxb7 {[%clk 0:00:51]}  Rbxb7 {[%clk 0:00:27]} 32. Nxb7 {[%clk 0:00:51]}  Rxb7 {[%clk 0:00:27]} 33. Nd6 {[%clk 0:00:45]}  Rg7 {[%clk 0:00:27]} 34. Kh2 {[%clk 0:00:39]}  Ne7 {[%clk 0:00:23]} 35. Rf1 {[%clk 0:00:31]}  h6 {[%clk 0:00:22]} 36. b4 {[%clk 0:00:31]}  axb4 {[%clk 0:00:21]} 37. axb4 {[%clk 0:00:32]}  Ng3 {[%clk 0:00:19]} 38. Rf3 {[%clk 0:00:32]}  Ne2 {[%clk 0:00:18]} 39. b5 {[%clk 0:00:26]}  Nd4 {[%clk 0:00:17]} 40. Rf4 {[%clk 0:00:25]}  Ne6 {[%clk 0:00:17]} 41. Re4 {[%clk 0:00:25]}  Nc5 {[%clk 0:00:17]} 42. Re3 {[%clk 0:00:22]}  Ng6 {[%clk 0:00:17]} 43. Bd5+ {[%clk 0:00:20]}  Kh7 {[%clk 0:00:17]} 44. Nf5 {[%clk 0:00:19]}  Rc7 {[%clk 0:00:14]} 45. Re8 {[%clk 0:00:19]}  Nf4 {[%clk 0:00:05]} 46. Kg3 {[%clk 0:00:16]}  Nxd5 {[%clk 0:00:05]} 47. cxd5 {[%clk 0:00:16]}  Rd7 {[%clk 0:00:06]} 48. d6 {[%clk 0:00:16]}  Kg6 {[%clk 0:00:05]} 49. Kf4 {[%clk 0:00:14]}  Nd3+ {[%clk 0:00:05]} 50. Ke4 {[%clk 0:00:15]}  Nc5+ {[%clk 0:00:06]} 51. Ke5 {[%clk 0:00:15]}  Nd3+ {[%clk 0:00:06]} 52. Ke4 {[%clk 0:00:13]}  Nc5+ {[%clk 0:00:06]} 53. Ke5 {[%clk 0:00:09]}  Nd3+ {[%clk 0:00:07]} 54. Ke6 {[%clk 0:00:09]}  Nc5+ {[%clk 0:00:07]} 55. Kd5 {[%clk 0:00:09]}  Kxf5 {[%clk 0:00:07]} 56. Rf8+ {[%clk 0:00:09]}  Kg6 {[%clk 0:00:07]} 57. Kc6 {[%clk 0:00:09]}  Rf7 {[%clk 0:00:05]} 58. Rb8 {[%clk 0:00:07]}  Kf6 {[%clk 0:00:05]} 59. Rxb6 {[%clk 0:00:07]}  Nd7 {[%clk 0:00:05]} 60. Rb7 {[%clk 0:00:07]}  Ke6 {[%clk 0:00:06]} 61. Rc7 {[%clk 0:00:07]}  Ne5+ {[%clk 0:00:06]} 62. Kb6 {[%clk 0:00:07]}  Nd7+ {[%clk 0:00:06]} 63. Kb7 {[%clk 0:00:07]}  Rf5 {[%clk 0:00:05]} 64. b6 {[%clk 0:00:06]}  Rb5 {[%clk 0:00:05]} 65. Rc6 {[%clk 0:00:06]}  Kd5 {[%clk 0:00:04]} 66. Kc7 {[%clk 0:00:06]}  Nxb6 {[%clk 0:00:01]} 67. d7 {[%clk 0:00:03]}  Nxd7 {[%clk 0:00:02]} 68. Rd6+ {[%clk 0:00:03]}  Ke5 {[%clk 0:00:02]} 69. Rxh6 {[%clk 0:00:03]}  Kf4 {[%clk 0:00:03]} 70. Kxd7 {[%clk 0:00:03]}  Rf5 {[%clk 0:00:04]} 71. h4 {[%clk 0:00:03]}  Kg4 {[%clk 0:00:04]} 72. Ke6 {[%clk 0:00:04]}  Rh5 {[%clk 0:00:05]} 73. Rxh5 {[%clk 0:00:02]}  Kxh5 {[%clk 0:00:05]} 74. Kf5 {[%clk 0:00:02]}  Kxh4 {[%clk 0:00:06]} 1/2-1/2


[Site "https://www.chess.com"]

[Event "Titled Tuesday Blitz March 15 Late 2022"]
[White "Sadilek, Peter"]
[Black "Sailer, Mike"]
[WhiteFideId "1616439"]
[BlackFideId "2012901"]
[WhiteElo "2145"]
[BlackElo "2109"]
[Result "1-0"]
[Round "04"]
[TimeControl "180+1"]
[Date "2022.03.16"]
[WhiteClock "0:00:57"]
[BlackClock "0:01:40"]

1. e4 {[%clk 0:02:19]}  d5 {[%clk 0:02:58]} 2. exd5 {[%clk 0:02:19]}  Qxd5 {[%clk 0:02:58]} 3. Nf3 {[%clk 0:02:19]}  Bg4 {[%clk 0:02:57]} 4. Be2 {[%clk 0:02:19]}  Nf6 {[%clk 0:02:57]} 5. d4 {[%clk 0:02:20]}  Nc6 {[%clk 0:02:58]} 6. Be3 {[%clk 0:02:20]}  O-O-O {[%clk 0:02:58]} 7. Nbd2 {[%clk 0:02:21]}  e5 {[%clk 0:02:58]} 8. c4 {[%clk 0:02:13]}  Qa5 {[%clk 0:02:39]} 9. d5 {[%clk 0:02:07]}  Bxf3 {[%clk 0:02:37]} 10. Bxf3 {[%clk 0:02:05]}  Nd4 {[%clk 0:02:37]} 11. O-O {[%clk 0:02:01]}  Nxf3+ {[%clk 0:02:34]} 12. Qxf3 {[%clk 0:01:58]}  Bc5 {[%clk 0:02:27]} 13. Nb3 {[%clk 0:01:58]}  Qb4 {[%clk 0:02:09]} 14. Nxc5 {[%clk 0:01:26]}  Qxc4 {[%clk 0:02:08]} 15. Qf5+ {[%clk 0:01:14]}  Kb8 {[%clk 0:02:04]} 16. Rac1 {[%clk 0:01:10]}  Qxd5 {[%clk 0:02:04]} 17. h3 {[%clk 0:01:06]}  Qxa2 {[%clk 0:01:40]} 18. Ra1 {[%clk 0:01:00]}  Qxb2 {[%clk 0:01:40]} 19. Rfb1 {[%clk 0:00:57]} 1-0


[Site "https://www.chess.com"]

[Event "Titled Tuesday Blitz March 15 Late 2022"]
[White "Sanchez, Robert"]
[Black "Plazuelo Pascual, Juan"]
[WhiteFideId "2034360"]
[BlackFideId "32059566"]
[WhiteElo "2319"]
[BlackElo "2364"]
[Result "0-1"]
[Round "04"]
[TimeControl "180+1"]
[Date "2022.03.16"]
[WhiteClock "0:00:02"]
[BlackClock "0:00:09"]

1. e4 {[%clk 0:02:56]}  e5 {[%clk 0:02:59]} 2. Nf3 {[%clk 0:02:56]}  Nf6 {[%clk 0:03:00]} 3. Nxe5 {[%clk 0:02:55]}  d6 {[%clk 0:03:00]} 4. Nf3 {[%clk 0:02:55]}  Nxe4 {[%clk 0:03:00]} 5. Nc3 {[%clk 0:02:55]}  Nxc3 {[%clk 0:03:00]} 6. dxc3 {[%clk 0:02:56]}  Be7 {[%clk 0:03:01]} 7. Bd3 {[%clk 0:02:56]}  O-O {[%clk 0:03:01]} 8. Be3 {[%clk 0:02:56]}  Re8 {[%clk 0:02:56]} 9. Qd2 {[%clk 0:02:56]}  Nd7 {[%clk 0:02:57]} 10. O-O-O {[%clk 0:02:56]}  c5 {[%clk 0:02:57]} 11. Kb1 {[%clk 0:02:56]}  Qa5 {[%clk 0:02:55]} 12. h4 {[%clk 0:02:46]}  Nf6 {[%clk 0:02:53]} 13. Qe2 {[%clk 0:02:38]}  Be6 {[%clk 0:02:50]} 14. c4 {[%clk 0:02:37]}  b5 {[%clk 0:02:50]} 15. Ng5 {[%clk 0:02:33]}  Bxc4 {[%clk 0:02:44]} 16. Bxc4 {[%clk 0:02:33]}  bxc4 {[%clk 0:02:45]} 17. Qxc4 {[%clk 0:02:31]}  d5 {[%clk 0:02:46]} 18. Rxd5 {[%clk 0:02:22]}  Nxd5 {[%clk 0:02:45]} 19. Qxd5 {[%clk 0:02:23]}  Bxg5 {[%clk 0:01:53]} 20. hxg5 {[%clk 0:02:24]}  Rad8 {[%clk 0:01:52]} 21. Qf5 {[%clk 0:02:17]}  g6 {[%clk 0:01:52]} 22. Qh3 {[%clk 0:02:07]}  h5 {[%clk 0:01:47]} 23. g4 {[%clk 0:01:48]}  Qc7 {[%clk 0:01:01]} 24. gxh5 {[%clk 0:01:43]}  Qd7 {[%clk 0:01:02]} 25. Qf3 {[%clk 0:01:16]}  Qd5 {[%clk 0:01:01]} 26. Qxd5 {[%clk 0:01:00]}  Rxd5 {[%clk 0:01:02]} 27. hxg6 {[%clk 0:01:00]}  fxg6 {[%clk 0:01:02]} 28. b3 {[%clk 0:00:59]}  a6 {[%clk 0:00:38]} 29. Rh4 {[%clk 0:00:53]}  Rc8 {[%clk 0:00:31]} 30. Re4 {[%clk 0:00:49]}  Kf7 {[%clk 0:00:31]} 31. Rf4+ {[%clk 0:00:43]}  Rf5 {[%clk 0:00:24]} 32. Ra4 {[%clk 0:00:43]}  Rc6 {[%clk 0:00:23]} 33. Rc4 {[%clk 0:00:42]}  Ke6 {[%clk 0:00:22]} 34. a4 {[%clk 0:00:33]}  Kd5 {[%clk 0:00:21]} 35. Rh4 {[%clk 0:00:32]}  c4 {[%clk 0:00:21]} 36. b4 {[%clk 0:00:28]}  c3 {[%clk 0:00:14]} 37. Rd4+ {[%clk 0:00:25]}  Ke6 {[%clk 0:00:13]} 38. Ka2 {[%clk 0:00:21]}  Rf7 {[%clk 0:00:06]} 39. Kb3 {[%clk 0:00:21]}  Rb7 {[%clk 0:00:06]} 40. Rf4 {[%clk 0:00:16]}  Kd5 {[%clk 0:00:05]} 41. Rd4+ {[%clk 0:00:13]}  Ke5 {[%clk 0:00:05]} 42. Rd8 {[%clk 0:00:12]}  Re6 {[%clk 0:00:03]} 43. Bd4+ {[%clk 0:00:06]}  Ke4 {[%clk 0:00:03]} 44. Bxc3 {[%clk 0:00:06]}  Kf4 {[%clk 0:00:03]} 45. Bf6 {[%clk 0:00:05]}  Kf3 {[%clk 0:00:04]} 46. c3 {[%clk 0:00:04]}  Re4 {[%clk 0:00:04]} 47. Rd4 {[%clk 0:00:03]}  Re1 {[%clk 0:00:04]} 48. Kc4 {[%clk 0:00:03]}  Rc1 {[%clk 0:00:04]} 49. b5 {[%clk 0:00:02]}  Rc7+ {[%clk 0:00:05]} 50. Kd5 {[%clk 0:00:01]}  R1xc3 {[%clk 0:00:05]} 51. bxa6 {[%clk 0:00:02]}  R3c5+ {[%clk 0:00:06]} 52. Kd6 {[%clk 0:00:01]}  R5c6+ {[%clk 0:00:06]} 53. Kd5 {[%clk 0:00:02]}  Rc5+ {[%clk 0:00:07]} 54. Kd6 {[%clk 0:00:02]}  R5c6+ {[%clk 0:00:08]} 55. Kd5 {[%clk 0:00:02]}  Rxa6 {[%clk 0:00:09]} 0-1


[Site "https://www.chess.com"]

[Event "Titled Tuesday Blitz March 15 Late 2022"]
[White "Seul, Georg"]
[Black "Chyngyz, Sultai"]
[WhiteFideId "4601653"]
[BlackFideId "13803158"]
[WhiteElo "2271"]
[BlackElo "1365"]
[Result "1-0"]
[Round "04"]
[TimeControl "180+1"]
[Date "2022.03.16"]
[WhiteClock "0:01:33"]
[BlackClock "0:01:56"]

1. e4 {[%clk 0:03:00]}  c5 {[%clk 0:02:57]} 2. d3 {[%clk 0:03:00]}  d6 {[%clk 0:02:57]} 3. f4 {[%clk 0:03:00]}  Nc6 {[%clk 0:02:57]} 4. Nf3 {[%clk 0:03:01]}  g6 {[%clk 0:02:57]} 5. Be2 {[%clk 0:03:01]}  Bg7 {[%clk 0:02:57]} 6. O-O {[%clk 0:03:02]}  Nf6 {[%clk 0:02:57]} 7. Qe1 {[%clk 0:03:02]}  O-O {[%clk 0:02:58]} 8. Qh4 {[%clk 0:03:01]}  Bd7 {[%clk 0:02:53]} 9. Kh1 {[%clk 0:02:57]}  Nd4 {[%clk 0:02:53]} 10. Bd1 {[%clk 0:02:57]}  Nxf3 {[%clk 0:02:52]} 11. Bxf3 {[%clk 0:02:56]}  Bc6 {[%clk 0:02:49]} 12. Nc3 {[%clk 0:02:52]}  b5 {[%clk 0:02:48]} 13. e5 {[%clk 0:02:51]}  Bxf3 {[%clk 0:02:45]} 14. Rxf3 {[%clk 0:02:50]}  dxe5 {[%clk 0:02:44]} 15. fxe5 {[%clk 0:02:50]}  Nd5 {[%clk 0:02:45]} 16. Ne4 {[%clk 0:02:13]}  c4 {[%clk 0:02:31]} 17. Bh6 {[%clk 0:02:06]}  cxd3 {[%clk 0:02:28]} 18. Rxd3 {[%clk 0:01:56]}  e6 {[%clk 0:02:23]} 19. Bg5 {[%clk 0:01:49]}  Qc7 {[%clk 0:02:13]} 20. Nf6+ {[%clk 0:01:47]}  Nxf6 {[%clk 0:02:03]} 21. exf6 {[%clk 0:01:46]}  Bh8 {[%clk 0:02:03]} 22. Qh6 {[%clk 0:01:41]}  Rfd8 {[%clk 0:02:02]} 23. Rh3 {[%clk 0:01:40]}  Bxf6 {[%clk 0:01:56]} 24. Bxf6 {[%clk 0:01:33]} 1-0


[Site "https://www.chess.com"]

[Event "Titled Tuesday Blitz March 15 Late 2022"]
[White "Sochacki, Christophe"]
[Black "Karas, Marek"]
[WhiteFideId "662569"]
[BlackFideId "14928558"]
[WhiteElo "2480"]
[BlackElo "2271"]
[Result "1-0"]
[Round "04"]
[TimeControl "180+1"]
[Date "2022.03.16"]
[WhiteClock "0:01:30"]
[BlackClock "0:02:10"]

1. Nf3 {[%clk 0:02:45]}  d5 {[%clk 0:02:56]} 2. b3 {[%clk 0:02:43]}  e6 {[%clk 0:02:54]} 3. Bb2 {[%clk 0:02:43]}  c6 {[%clk 0:02:54]} 4. g3 {[%clk 0:02:43]}  f5 {[%clk 0:02:54]} 5. Bg2 {[%clk 0:02:43]}  Nf6 {[%clk 0:02:54]} 6. O-O {[%clk 0:02:43]}  Bd6 {[%clk 0:02:53]} 7. d3 {[%clk 0:02:44]}  O-O {[%clk 0:02:53]} 8. Nbd2 {[%clk 0:02:43]}  Qe8 {[%clk 0:02:45]} 9. e4 {[%clk 0:02:41]}  Bc7 {[%clk 0:02:42]} 10. Qe2 {[%clk 0:02:15]}  Qh5 {[%clk 0:02:39]} 11. Rae1 {[%clk 0:02:13]}  Na6 {[%clk 0:02:36]} 12. c4 {[%clk 0:02:11]}  Bd7 {[%clk 0:02:27]} 13. cxd5 {[%clk 0:02:01]}  cxd5 {[%clk 0:02:22]} 14. exf5 {[%clk 0:01:52]}  exf5 {[%clk 0:02:18]} 15. Bxf6 {[%clk 0:01:31]}  Rxf6 {[%clk 0:02:16]} 16. Nd4 {[%clk 0:01:31]}  Bc6 {[%clk 0:02:10]} 17. Qxh5 {[%clk 0:01:30]} 1-0


[Site "https://www.chess.com"]

[Event "Titled Tuesday Blitz March 15 Late 2022"]
[White "Solon, Nathan"]
[Black "Lobanov, Sergei"]
[WhiteFideId "2017229"]
[BlackFideId "24183750"]
[WhiteElo "2564"]
[BlackElo "2514"]
[Result "1-0"]
[Round "04"]
[TimeControl "180+1"]
[Date "2022.03.15"]
[WhiteClock "0:00:07"]
[BlackClock "0:00:07"]

1. d4 {[%clk 0:03:00]}  Nf6 {[%clk 0:02:59]} 2. Bg5 {[%clk 0:03:00]}  Ne4 {[%clk 0:02:57]} 3. Bf4 {[%clk 0:03:00]}  d5 {[%clk 0:02:57]} 4. e3 {[%clk 0:03:00]}  c5 {[%clk 0:02:58]} 5. Bd3 {[%clk 0:02:59]}  Nc6 {[%clk 0:02:58]} 6. Bxe4 {[%clk 0:02:56]}  dxe4 {[%clk 0:02:59]} 7. Ne2 {[%clk 0:02:56]}  g5 {[%clk 0:02:54]} 8. Bxg5 {[%clk 0:02:47]}  Rg8 {[%clk 0:02:54]} 9. Bf4 {[%clk 0:02:37]}  cxd4 {[%clk 0:02:53]} 10. exd4 {[%clk 0:02:36]}  Rxg2 {[%clk 0:02:53]} 11. Bg3 {[%clk 0:02:32]}  Bg4 {[%clk 0:02:38]} 12. Nbc3 {[%clk 0:02:08]}  Bg7 {[%clk 0:02:28]} 13. Qd2 {[%clk 0:01:34]}  Nxd4 {[%clk 0:02:25]} 14. Nxd4 {[%clk 0:01:34]}  Qxd4 {[%clk 0:01:46]} 15. Qxd4 {[%clk 0:01:23]}  Bxd4 {[%clk 0:01:47]} 16. Nxe4 {[%clk 0:01:23]}  Bxb2 {[%clk 0:01:36]} 17. Rb1 {[%clk 0:01:23]}  Bg7 {[%clk 0:01:02]} 18. Ng5 {[%clk 0:01:00]}  h6 {[%clk 0:00:45]} 19. h3 {[%clk 0:00:57]}  Bd7 {[%clk 0:00:42]} 20. Nf3 {[%clk 0:00:51]}  Bc6 {[%clk 0:00:38]} 21. Ke2 {[%clk 0:00:52]}  Bf6 {[%clk 0:00:28]} 22. Rhd1 {[%clk 0:00:48]}  h5 {[%clk 0:00:23]} 23. h4 {[%clk 0:00:42]}  Kf8 {[%clk 0:00:22]} 24. Rb3 {[%clk 0:00:24]}  Be4 {[%clk 0:00:21]} 25. Rd2 {[%clk 0:00:19]}  Rc8 {[%clk 0:00:21]} 26. Kf1 {[%clk 0:00:19]}  Bxc2 {[%clk 0:00:12]} 27. Kxg2 {[%clk 0:00:16]}  Bxb3 {[%clk 0:00:11]} 28. axb3 {[%clk 0:00:17]}  b5 {[%clk 0:00:08]} 29. Rd7 {[%clk 0:00:17]}  Ra8 {[%clk 0:00:08]} 30. Rb7 {[%clk 0:00:16]}  a6 {[%clk 0:00:08]} 31. Be5 {[%clk 0:00:16]}  Kg7 {[%clk 0:00:07]} 32. Rxe7 {[%clk 0:00:15]}  Bxe5 {[%clk 0:00:06]} 33. Rxe5 {[%clk 0:00:16]}  Kf6 {[%clk 0:00:06]} 34. Rxh5 {[%clk 0:00:16]}  Rc8 {[%clk 0:00:06]} 35. Rd5 {[%clk 0:00:14]}  Ke6 {[%clk 0:00:06]} 36. Rd3 {[%clk 0:00:13]}  a5 {[%clk 0:00:06]} 37. Nd4+ {[%clk 0:00:12]}  Ke5 {[%clk 0:00:06]} 38. Nxb5 {[%clk 0:00:13]}  Ke4 {[%clk 0:00:07]} 39. Re3+ {[%clk 0:00:12]}  Kf4 {[%clk 0:00:07]} 40. Nc3 {[%clk 0:00:11]}  Rg8+ {[%clk 0:00:06]} 41. Kf1 {[%clk 0:00:11]}  Rb8 {[%clk 0:00:07]} 42. Nd5+ {[%clk 0:00:11]}  Kf5 {[%clk 0:00:08]} 43. Ke2 {[%clk 0:00:11]}  f6 {[%clk 0:00:05]} 44. Kd2 {[%clk 0:00:10]}  Kg4 {[%clk 0:00:06]} 45. Kc3 {[%clk 0:00:08]}  f5 {[%clk 0:00:06]} 46. Rd3 {[%clk 0:00:07]}  Kxh4 {[%clk 0:00:06]} 47. Rd4+ {[%clk 0:00:07]}  Kh3 {[%clk 0:00:06]} 48. Ne3 {[%clk 0:00:08]}  Rc8+ {[%clk 0:00:05]} 49. Kb2 {[%clk 0:00:08]}  Kh2 {[%clk 0:00:04]} 50. Nxf5 {[%clk 0:00:08]}  Rf8 {[%clk 0:00:04]} 51. Rd5 {[%clk 0:00:06]}  Kg2 {[%clk 0:00:04]} 52. Rxa5 {[%clk 0:00:06]}  Kf3 {[%clk 0:00:04]} 53. Ne3 {[%clk 0:00:06]}  Ke4 {[%clk 0:00:05]} 54. Nc4 {[%clk 0:00:06]}  Kd3 {[%clk 0:00:06]} 55. Ka3 {[%clk 0:00:07]}  Rxf2 {[%clk 0:00:07]} 56. Rd5+ {[%clk 0:00:07]}  Ke4 {[%clk 0:00:07]} 57. Rd1 {[%clk 0:00:07]}  Rh2 {[%clk 0:00:07]} 58. b4 {[%clk 0:00:07]}  Rh8 {[%clk 0:00:07]} 59. b5 {[%clk 0:00:07]}  Rc8 {[%clk 0:00:07]} 60. Nd6+ {[%clk 0:00:07]} 1-0


[Site "https://www.chess.com"]

[Event "Titled Tuesday Blitz March 15 Late 2022"]
[White "Suleymanli, Aydin"]
[Black "Indjic, Aleksandar"]
[WhiteFideId "13413937"]
[BlackFideId "911925"]
[WhiteElo "2841"]
[BlackElo "2945"]
[Result "0-1"]
[Round "04"]
[TimeControl "180+1"]
[Date "2022.03.15"]
[WhiteClock "0:00:03"]
[BlackClock "0:00:16"]

1. e4 {[%clk 0:02:51]}  e5 {[%clk 0:02:59]} 2. Nf3 {[%clk 0:02:51]}  Nf6 {[%clk 0:03:00]} 3. Nc3 {[%clk 0:02:50]}  Nc6 {[%clk 0:02:58]} 4. a3 {[%clk 0:02:51]}  d5 {[%clk 0:02:56]} 5. Bb5 {[%clk 0:02:50]}  Nxe4 {[%clk 0:02:30]} 6. Qe2 {[%clk 0:02:45]}  Nxc3 {[%clk 0:02:19]} 7. Qxe5+ {[%clk 0:02:22]}  Qe7 {[%clk 0:02:18]} 8. dxc3 {[%clk 0:02:16]}  Bd7 {[%clk 0:02:18]} 9. Qxe7+ {[%clk 0:02:11]}  Bxe7 {[%clk 0:02:18]} 10. Be3 {[%clk 0:02:11]}  a6 {[%clk 0:02:16]} 11. Be2 {[%clk 0:02:02]}  O-O-O {[%clk 0:02:15]} 12. O-O-O {[%clk 0:02:02]}  Bf5 {[%clk 0:02:14]} 13. Rhe1 {[%clk 0:01:55]}  Rhe8 {[%clk 0:02:13]} 14. Nd4 {[%clk 0:01:44]}  Nxd4 {[%clk 0:02:13]} 15. Bxd4 {[%clk 0:01:45]}  f6 {[%clk 0:02:10]} 16. Bf3 {[%clk 0:01:43]}  c5 {[%clk 0:01:26]} 17. Be3 {[%clk 0:01:28]}  Be4 {[%clk 0:01:23]} 18. Bg4+ {[%clk 0:01:19]}  Kc7 {[%clk 0:01:23]} 19. f3 {[%clk 0:01:04]}  Bg6 {[%clk 0:01:22]} 20. b4 {[%clk 0:00:44]}  Kc6 {[%clk 0:01:20]} 21. Bf2 {[%clk 0:00:42]}  Bf8 {[%clk 0:01:18]} 22. h4 {[%clk 0:00:34]}  h5 {[%clk 0:01:16]} 23. Be6 {[%clk 0:00:31]}  b6 {[%clk 0:00:45]} 24. g4 {[%clk 0:00:22]}  Rd6 {[%clk 0:00:42]} 25. Bf5 {[%clk 0:00:19]}  Rxe1 {[%clk 0:00:40]} 26. Rxe1 {[%clk 0:00:20]}  Bxf5 {[%clk 0:00:40]} 27. gxf5 {[%clk 0:00:21]}  Rd8 {[%clk 0:00:37]} 28. Re6+ {[%clk 0:00:19]}  Kb5 {[%clk 0:00:30]} 29. Kb2 {[%clk 0:00:18]}  a5 {[%clk 0:00:29]} 30. Kb3 {[%clk 0:00:18]}  a4+ {[%clk 0:00:29]} 31. Kb2 {[%clk 0:00:18]}  Rd7 {[%clk 0:00:29]} 32. Re8 {[%clk 0:00:18]}  Bd6 {[%clk 0:00:29]} 33. Re6 {[%clk 0:00:17]}  Be5 {[%clk 0:00:29]} 34. Bg1 {[%clk 0:00:15]}  Kc4 {[%clk 0:00:29]} 35. Rxb6 {[%clk 0:00:11]}  Bxc3+ {[%clk 0:00:29]} 36. Ka2 {[%clk 0:00:11]}  cxb4 {[%clk 0:00:25]} 37. Rc6+ {[%clk 0:00:11]}  Kb5 {[%clk 0:00:25]} 38. Rc5+ {[%clk 0:00:12]}  Ka6 {[%clk 0:00:25]} 39. Rc6+ {[%clk 0:00:13]}  Ka5 {[%clk 0:00:24]} 40. Rc5+ {[%clk 0:00:11]}  Ka6 {[%clk 0:00:24]} 41. Rc6+ {[%clk 0:00:11]}  Kb7 {[%clk 0:00:23]} 42. Rb6+ {[%clk 0:00:12]}  Kc7 {[%clk 0:00:23]} 43. axb4 {[%clk 0:00:13]}  d4 {[%clk 0:00:24]} 44. Rb5 {[%clk 0:00:12]}  Re7 {[%clk 0:00:21]} 45. Rd5 {[%clk 0:00:08]}  Re1 {[%clk 0:00:20]} 46. Rc5+ {[%clk 0:00:04]}  Kd7 {[%clk 0:00:18]} 47. Rxc3 {[%clk 0:00:03]}  dxc3 {[%clk 0:00:18]} 48. Bd4 {[%clk 0:00:04]}  Rc1 {[%clk 0:00:18]} 49. b5 {[%clk 0:00:04]}  Rxc2+ {[%clk 0:00:18]} 50. Ka3 {[%clk 0:00:04]}  Rb2 {[%clk 0:00:18]} 51. Kxa4 {[%clk 0:00:04]}  Ra2+ {[%clk 0:00:15]} 52. Kb3 {[%clk 0:00:04]}  Rb2+ {[%clk 0:00:16]} 53. Kc4 {[%clk 0:00:03]}  Rb1 {[%clk 0:00:15]} 54. Bxc3 {[%clk 0:00:03]}  Kc7 {[%clk 0:00:16]} 55. Bd4 {[%clk 0:00:03]}  Rf1 {[%clk 0:00:15]} 56. Kd5 {[%clk 0:00:03]}  Rxf3 {[%clk 0:00:15]} 57. Ke6 {[%clk 0:00:04]}  Rf4 {[%clk 0:00:16]} 58. Be3 {[%clk 0:00:04]}  Rxh4 {[%clk 0:00:15]} 59. Kf7 {[%clk 0:00:04]}  Rg4 {[%clk 0:00:16]} 60. Bc5 {[%clk 0:00:03]}  h4 {[%clk 0:00:16]} 61. Bf8 {[%clk 0:00:03]}  h3 {[%clk 0:00:16]} 62. Bxg7 {[%clk 0:00:03]}  h2 {[%clk 0:00:16]} 63. Bxf6 {[%clk 0:00:03]}  h1=Q {[%clk 0:00:16]} 0-1


[Site "https://www.chess.com"]

[Event "Titled Tuesday Blitz March 15 Late 2022"]
[White "Svane, Rasmus"]
[Black "Nihal Sarin"]
[WhiteFideId "4657101"]
[BlackFideId "25092340"]
[WhiteElo "2924"]
[BlackElo "3093"]
[Result "1/2-1/2"]
[Round "04"]
[TimeControl "180+1"]
[Date "2022.03.15"]
[WhiteClock "0:00:26"]
[BlackClock "0:00:12"]

1. Nf3 {[%clk 0:03:00]}  d5 {[%clk 0:02:57]} 2. g3 {[%clk 0:03:00]}  Nd7 {[%clk 0:02:58]} 3. d4 {[%clk 0:03:00]}  Nb6 {[%clk 0:02:58]} 4. Nc3 {[%clk 0:03:01]}  Bf5 {[%clk 0:02:56]} 5. a4 {[%clk 0:03:01]}  a5 {[%clk 0:02:56]} 6. Nh4 {[%clk 0:03:01]}  Bg4 {[%clk 0:02:55]} 7. h3 {[%clk 0:02:57]}  Bh5 {[%clk 0:02:47]} 8. Bg2 {[%clk 0:02:58]}  e6 {[%clk 0:02:46]} 9. O-O {[%clk 0:02:47]}  Be7 {[%clk 0:02:46]} 10. Nf3 {[%clk 0:02:47]}  Nf6 {[%clk 0:02:46]} 11. g4 {[%clk 0:02:43]}  Bg6 {[%clk 0:02:46]} 12. Ne5 {[%clk 0:02:43]}  Nfd7 {[%clk 0:02:47]} 13. Nxg6 {[%clk 0:02:43]}  hxg6 {[%clk 0:02:48]} 14. e4 {[%clk 0:02:44]}  dxe4 {[%clk 0:02:46]} 15. Nxe4 {[%clk 0:02:45]}  c6 {[%clk 0:02:46]} 16. Qe2 {[%clk 0:02:43]}  Nf6 {[%clk 0:02:42]} 17. c3 {[%clk 0:02:38]}  Nxe4 {[%clk 0:02:40]} 18. Qxe4 {[%clk 0:02:39]}  Nd5 {[%clk 0:02:41]} 19. Bd2 {[%clk 0:02:34]}  g5 {[%clk 0:02:36]} 20. f4 {[%clk 0:02:24]}  gxf4 {[%clk 0:02:36]} 21. Bxf4 {[%clk 0:02:25]}  Nxf4 {[%clk 0:02:28]} 22. Qxf4 {[%clk 0:02:26]}  O-O {[%clk 0:02:28]} 23. Rae1 {[%clk 0:02:21]}  Bd6 {[%clk 0:02:28]} 24. Qe3 {[%clk 0:02:08]}  Qh4 {[%clk 0:02:25]} 25. Re2 {[%clk 0:01:59]}  Rae8 {[%clk 0:02:21]} 26. Ref2 {[%clk 0:02:00]}  e5 {[%clk 0:02:17]} 27. Qd3 {[%clk 0:01:41]}  exd4 {[%clk 0:02:08]} 28. cxd4 {[%clk 0:01:42]}  Re7 {[%clk 0:02:05]} 29. Rf5 {[%clk 0:01:41]}  g6 {[%clk 0:01:51]} 30. Rf6 {[%clk 0:01:41]}  Qg3 {[%clk 0:01:26]} 31. Qxg3 {[%clk 0:01:41]}  Bxg3 {[%clk 0:01:26]} 32. R6f3 {[%clk 0:01:21]}  Bd6 {[%clk 0:01:24]} 33. R1f2 {[%clk 0:01:05]}  Bb8 {[%clk 0:01:06]} 34. Rd2 {[%clk 0:01:02]}  Rd8 {[%clk 0:01:06]} 35. Rfd3 {[%clk 0:01:00]}  Bf4 {[%clk 0:01:03]} 36. Rd1 {[%clk 0:00:52]}  Re2 {[%clk 0:01:03]} 37. b3 {[%clk 0:00:50]}  Rd6 {[%clk 0:00:46]} 38. d5 {[%clk 0:00:50]}  c5 {[%clk 0:00:45]} 39. Bf1 {[%clk 0:00:46]}  Rb2 {[%clk 0:00:45]} 40. Rf3 {[%clk 0:00:45]}  Be5 {[%clk 0:00:43]} 41. Bc4 {[%clk 0:00:45]}  Bd4+ {[%clk 0:00:42]} 42. Kh1 {[%clk 0:00:46]}  Kg7 {[%clk 0:00:41]} 43. Re1 {[%clk 0:00:45]}  Rf6 {[%clk 0:00:41]} 44. Rxf6 {[%clk 0:00:43]}  Bxf6 {[%clk 0:00:42]} 45. Rd1 {[%clk 0:00:41]}  Ra2 {[%clk 0:00:29]} 46. d6 {[%clk 0:00:40]}  Ra1 {[%clk 0:00:30]} 47. Rxa1 {[%clk 0:00:40]}  Bxa1 {[%clk 0:00:30]} 48. d7 {[%clk 0:00:40]}  Bf6 {[%clk 0:00:31]} 49. Kg2 {[%clk 0:00:40]}  Kf8 {[%clk 0:00:25]} 50. Kg3 {[%clk 0:00:35]}  Ke7 {[%clk 0:00:17]} 51. h4 {[%clk 0:00:35]}  Kxd7 {[%clk 0:00:15]} 52. Bxf7 {[%clk 0:00:32]}  g5 {[%clk 0:00:15]} 53. h5 {[%clk 0:00:31]}  Ke7 {[%clk 0:00:15]} 54. Bd5 {[%clk 0:00:28]}  Kf8 {[%clk 0:00:12]} 55. Bxb7 {[%clk 0:00:27]}  Kg7 {[%clk 0:00:12]} 56. Bd5 {[%clk 0:00:26]}  Kh6 {[%clk 0:00:12]} 1/2-1/2


[Site "https://www.chess.com"]